Cogmind - Beta 15 @@@ ROGUE MODE // 2025.06.28 @ 09:24:41 Player: Shoebillionaire Result: Destroyed by G-34 Mercenary with Small Laser Performance ------------- Evolutions (0) 0 Regions Visited (2) 400 Robots Destroyed (10) 50 Value Destroyed (178) 178 Prototype IDs (0) 0 Alien Tech Used (0) 0 Bonus (0) 0 TOTAL SCORE: 628 Bonus ------- None Cogmind --------- Core Integrity 0/250 Matter 300/300 Energy 100/100 System Corruption 0% Temperature Cool (6) Movement Core (100) Ox1 Location -10/Mines Parts ------- > --- POWER (1) -------- (None) > --- PROPULSION (2) --- (None) > --- UTILITY (2) ------ Small Storage Unit Salvage Targeting Computer > --- WEAPON (2) ------- (None) > --- INVENTORY (8) ---- Ion Engine Heat Sink Small Storage Unit Medium Matter Pod (63) Peak State ------------ > --- POWER ------------ Ion Engine > --- PROPULSION ------- Light Treads Light Treads > --- UTILITY ---------- Small Storage Unit Salvage Targeting Computer > --- WEAPON ----------- Medium Laser Small Laser > --- INVENTORY -------- Light Ion Engine Small Laser [Rating: 8] Favorites ----------- Power Ion Engine Engine Ion Engine Propulsion Light Treads Treads Light Treads Utility Small Storage Unit Storage Small Storage Unit Processor Salvage Targeting Computer Weapon Small Laser Energy Gun Small Laser Launcher Grenade Launcher Build | -11 -10 -10 ------- Run | Yrd Mat Min Slots Evolved . | . . . Power . | . . . Propulsion . | . . . Utility . | . . . Weapon . | . . . Parts Attached 10 | 6 4 . Power 2 | 1 1 . Engine 2 | 1 1 . Core . | . . . Reactor . | . . . Propulsion 2 | 2 . . Treads 2 | 2 . . Leg . | . . . Wheel . | . . . Hover . | . . . Flight . | . . . Utility 2 | 1 1 . Device . | . . . Storage 1 | 1 . . Processor 1 | . 1 . Hackware . | . . . Protection . | . . . Artifact . | . . . Weapon 4 | 2 2 . Energy Gun 3 | 2 1 . Energy Cannon . | . . . Ballistic Gun . | . . . Ballistic Cannon . | . . . Launcher 1 | . 1 . Special Weapon . | . . . Impact Weapon . | . . . Slashing Weapon . | . . . Piercing Weapon . | . . . Special Melee Weapon . | . . . Unidentified Prototypes . | . . . Parts Lost 7 | . 4 3 Power 1 | . . 1 Propulsion 2 | . 2 . Utility . | . . . Weapon 4 | . 2 2 Highest Loss Streak 3 | . 3 3 To Critical Strikes . | . . . Average Backups 2 | 1 2 3 Power . | . 1 1 Propulsion . | . . . Utility . | . . 2 Weapon . | . 1 . Tool/Special . | . . . Unused Backups 2 | . . 2 Power . | . . . Propulsion . | . . . Utility 2 | . . 2 Weapon . | . . . Tool/Special . | . . . Average Slot Usage (%) 84 | . 89 63 Engine 13 | . 14 11 Treads 18 | . 22 . Storage 14 | . 14 14 Processor 13 | . 13 14 Energy Gun 20 | . 21 12 Launcher 4 | . 2 11 Peak Build Rating 8 | 6 8 6 Average Rating 6 | 5 7 5 On Entrance 4 | . 6 6 Naked Turns . | . . . Heaviest Build 14 | 13 14 12 Greatest Support 40 | 40 40 3 Greatest Overweight (x) 4 | . 4 3 Average Overweight (x) . | . . 2 Largest Inventory Capacity 8 | 8 8 8 Average Capacity 7 | 7 8 8 Most Carried 4 | 2 3 4 Average Carried 2 | 1 2 3 Final Capacity 8 | 8 8 8 Final Carried 4 | 2 3 4 Class Distribution -------------------- 100% | Mutant Dominant Class ---------------- Mutant | -10/Materials Mutant | -10/Mines Resources | -11 -10 -10 ----------- Run | Yrd Mat Min Matter Collected 365 | 206 91 68 Remotely . | . . . Salvage Created 215 | . 194 21 Parts 14 | . 13 1 Haulers Intercepted . | . . . Recyclers Shooed . | . . . Parts Field Recycled . | . . . Retrieved Matter . | . . . Parts Self-Destructed . | . . . Prevented . | . . . Kills | -11 -10 -10 ------- Run | Yrd Mat Min Combat Hostiles Destroyed 8 | . 8 . Melee 1 | . 1 . Guns 6 | . 6 . AOE 1 | . 1 . Classes Destroyed 3 | . 3 . Worker 2 | . 1 1 Swarmer 4 | . 4 . Grunt 4 | . 4 . Best Kill Streak 3 | . 3 1 Combat Bots Only 2 | . 2 . Max Kills in Single Turn 2 | . 2 1 Gunslinging . | . . . Exploded 1 | . 1 . Melee 1 | . 1 . Uniques/NPCs Destroyed . | . . . Combat | -11 -10 -10 -------- Run | Yrd Mat Min Hostile Shots Fired 121 | . 83 38 Missed 33 | . 21 12 Hits 88 | . 62 26 Projectile 88 | . 62 26 Critical Strikes 1 | . . 1 Damage Taken 1010 | . 655 355 Core 255 | . 98 157 Absorbed by Shields . | . . . Core Remaining (%) 100 | 100 . . Volleys Fired 46 | 1 31 14 Largest 2 | 2 2 1 Hottest 90 | 90 90 40 Shots Fired 67 | 2 51 14 Gun 65 | 2 49 14 Cannon . | . . . Launcher 2 | . 2 . Special . | . . . Kinetic . | . . . Thermal 65 | 2 49 14 Explosive 2 | . 2 . Electromagnetic . | . . . Robot Hit Streak 7 | . 7 3 Robot Miss Streak 4 | . 4 4 Penetration Max . | . . . Secondary Targets . | . . . Shots Hit Robots 34 | . 27 7 Core Hits 21 | . 17 4 Critical Kills . | . . . Critical Parts Destroyed . | . . . Critical Strikes 1 | . 1 . Burn 1 | . 1 . Melee Attacks . | . . . Impact . | . . . Slashing . | . . . Piercing . | . . . Sneak Attacks . | . . . Combat Hostiles . | . . . Follow-up Attacks . | . . . Damage Inflicted 609 | . 491 118 Guns 437 | . 328 109 Cannons . | . . . Explosions 155 | . 155 . Melee . | . . . Ramming 17 | . 8 9 Kinetic . | . . . Thermal 437 | . 328 109 Explosive 155 | . 155 . Electromagnetic . | . . . Impact . | . . . Slashing . | . . . Piercing . | . . . Highest Corruption . | . . . Average Corruption . | . . . Corruption Purged . | . . . Corruption Blocked . | . . . Overload Shots . | . . . Overflow Damage . | . . . Projectiles . | . . . Explosions . | . . . Melee . | . . . Knockbacks . | . . . Impact . | . . . Kinetic . | . . . Secondary . | . . . Self-Inflicted Damage 75 | . 71 4 Shots 2 | . 2 . Rammed 7 | . 6 1 Targets Rammed 7 | . 6 1 Kicked . | . . . Crushed . | . . . Highest Temperature 318 | 30 318 42 Average Temperature 66 | 18 79 20 Received Heat Transfer 432 | . 216 216 Effects 1 | . 1 . Energy Bleed 1 | . 1 . Siege Activations . | . . . Martial Activations . | . . . Shielding Activations . | . . . Robots Disrupted . | . . . Combat Hostiles . | . . . Robots Corrupted . | . . . Combat Hostiles . | . . . Parts Fried . | . . . Impact Corruptions . | . . . Robots Melted . | . . . Combat Hostiles . | . . . Parts Melted 3 | . 3 . Heat Transferred 1203 | . 953 250 Parts Sabotaged . | . . . Parts Stolen . | . . . Parts Stripped . | . . . Power Chain Reactions . | . . . Alert | -11 -10 -10 ------- Run | Yrd Mat Min Maximum Alert Level . | . . . Low Security (%) 100 | 100 100 100 Level 1 . | . . . Level 2 . | . . . Level 3 . | . . . Level 4 . | . . . Level 5 . | . . . High Security . | . . . Max Security . | . . . Peak Influence 80 | . 80 5 Initial 1 | . . 1 Average 15 | . 27 . Influence Increases 207 | . 202 5 Destroy 0b10 Robot/C 160 | . 160 . Destroy 0b10 Robot/NC 10 | . 5 5 Destroy Leader 30 | . 30 . Destroy Structure 7 | . 7 . Influence Decreases 207 | . 196 11 Entered New Map 5 | . . 5 Time Decay 162 | . 156 6 Lost Part 40 | . 40 . Squads Dispatched 2 | . 2 . Investigation . | . . . Extermination . | . . . Reinforcement 2 | . 2 . Assault . | . . . Garrison . | . . . Intercept . | . . . Searches Triggered . | . . . Construction Impeded . | . . . Haulers Reinforced . | . . . Active Scanning Responses . | . . . Cargo Convoy Interrupts . | . . . Stealth | -11 -10 -10 --------- Run | Yrd Mat Min Distress Signals 1 | . 1 . Communications Jammed . | . . . Distress Signals . | . . . Times Spotted 20 | . 18 2 Peak Tracking Total 6 | . 6 2 Tactical Retreats . | . . . Traps | -11 -10 -10 ------- Run | Yrd Mat Min Traps Triggered . | . . . Indirectly . | . . . Trap Hack Attempts . | . . . Triggered . | . . . Disarmed . | . . . Reprogrammed . | . . . Reused . | . . . Traps Extracted . | . . . Installed . | . . . Triggered . | . . . Machines | -11 -10 -10 ---------- Run | Yrd Mat Min Machines Disabled . | . . . Max in Single Turn . | . . . Machines Repaired . | . . . Machines Dismantled . | . . . Machines Sabotaged . | . . . Overloaded Fab Kills . | . . . Hacking | -11 -10 -10 --------- Run | Yrd Mat Min Machines Accessed 2 | . 2 . Terminals 2 | . 2 . Fabricators . | . . . Repair Stations . | . . . Recycling Units . | . . . Scanalyzers . | . . . Garrison Access . | . . . Total Hacks 7 | . 7 . Successful 5 | . 5 . Failed 2 | . 2 . Catastrophic . | . . . Database Lockouts . | . . . Manual . | . . . Terminals 7 | . 7 . Fabricators . | . . . Repair Stations . | . . . Recycling Units . | . . . Scanalyzers . | . . . Garrison Access . | . . . Terminal Hacks 5 | . 5 . Alert Level 5 | . 5 . Fabricator Hacks . | . . . Repair Station Hacks . | . . . Recycling Unit Hacks . | . . . Scanalyzer . | . . . Garrison Access Hacks . | . . . Unauthorized Hacks . | . . . Terminals . | . . . Fabricators . | . . . Repair Stations . | . . . Recycling Units . | . . . Scanalyzers . | . . . Garrison Access . | . . . Data Cores Recovered . | . . . Used . | . . . Hacking Detections 1 | . 1 . Full Trace Events . | . . . Feedback Events . | . . . Feedback Blocked . | . . . Robot Schematics Acquired . | . . . Robots Built . | . . . Authchips . | . . . Time . | . . . Total Robot Build Rating . | . . . Part Schematics Acquired . | . . . Parts Built . | . . . Authchips . | . . . Time . | . . . Total Part Build Rating . | . . . Parts Repaired . | . . . Time . | . . . Parts Recycled . | . . . Recycled Matter . | . . . Retrieved Matter . | . . . Retrieved Components . | . . . Parts Scanalyzed . | . . . Part Schematics Acquired . | . . . Parts Damaged . | . . . Bothacking | -11 -10 -10 ------------ Run | Yrd Mat Min Used RIF Installer . | . . . Robots Hacked . | . . . Non-combat . | . . . Combat . | . . . Robot Hacks Applied . | . . . Relay Couplers Released . | . . . Fabnet Peak Effective % . | . . . Robots Rewired . | . . . Allies Hacked . | . . . Hacks Repelled . | . . . Allies | -11 -10 -10 -------- Run | Yrd Mat Min Total Allies . | . . . Largest Group . | . . . Highest-Rated Group . | . . . Highest-Rated Ally . | . . . Total Orders . | . . . Ally Attacks . | . . . Total Damage . | . . . Kills . | . . . Allies Corrupted . | . . . Allies Melted . | . . . Intel | -11 -10 -10 ------- Run | Yrd Mat Min Active Infowar (turns) . | . . . Robot Analysis Total . | . . . Derelict Logs Recovered . | . . . Drone Launches . | . . . Drone Recoveries . | . . . Exploration | -11 -10 -10 ------------- Run | Yrd Mat Min Turns Passed 776 | 245 437 94 Spaces Moved 377 | 140 201 36 Core 74 | 4 34 36 Treads 303 | 136 167 . Legs . | . . . Wheels . | . . . Hover . | . . . Flight . | . . . Fastest Speed 50 | 50 160 100 Average Speed 165 | 156 168 177 Slowest Speed 250 | 160 250 200 Overloaded Moves . | . . . Propulsion Burnouts . | . . . Robots Hopped . | . . . Potential Cave-ins . | . . . Cave-ins Triggered . | . . . Exploration Rate (%) 20 | 10 30 20 Regions Visited 2 Branch Regions 1 Pre-discovered Areas . | . . . Known Exits Taken . | . . . Unknown Exits Taken 2 | 1 1 . Scrap Searched 1 | . . 1 Spaces Dug . | . . . Terrain Destroyed 6 | . 6 . Melee . | . . . Projectile . | . . . AOE 6 | . 6 . Terrain Rammed . | . . . Walls Destroyed . | . . . Machines Disabled . | . . . Actions | -11 -10 -10 --------- Run | Yrd Mat Min Total 457 | 161 244 52 Wait 13 | 13 . . Move 375 | 139 200 36 Hop . | . . . Pick Up 6 | 2 3 1 Fast Attach 7 | 6 1 . Attach 2 | . 2 . Detach . | . . . Swap 1 | . 1 . Drop . | . . . Fire 46 | 1 31 14 Melee . | . . . Ram 1 | . . 1 Kick . | . . . Crush 6 | . 6 . Escape Stasis . | . . . Rewire . | . . . Trap . | . . . Miscellaneous . | . . . Route ------- -11/Scrapyard -10/Materials -10/Mines History --------- Turn | Location | Event 16 | -11/Scrapyard | Discovered new exit (range 15) 246 | -11/Scrapyard | Entered Materials 312 | -10/Materials | Build established: Mutant 632 | -10/Materials | Lost 3 parts (2n1w) 638 | -10/Materials | Discovered new exit (range 11) 683 | -10/Materials | Entered Mines 756 | -10/Mines | Core integrity fell below 50% 774 | -10/Mines | Core integrity fell below 20% 777 | -10/Mines | Destroyed by G-34 Mercenary with Small Laser Last Messages --------------- GOAL=ESCAPE Something is scanning the area. A derelict is hurriedly installing traps. MH-Y5E(g): "Hehe, this'll put a wrench in their mining defense operations..." MH-Y5E(g) slips into the shadows. Searching scrap... Found Sml. Storage Unit. Found 68 Matter. Acquired 68 matter. Acquired Sml. Storage Unit. Critical hit (Burn: +37). K-01 Serf cleans the Core Extractor. K-01 Serf destroyed. Lgt. Ion Engine destroyed. Grenade Launcher destroyed. R-06 Scavenger collects Lgt. Ion Engine. Sml. Laser destroyed. Slammed into G-34 Mercenary. [Achievement: First Step to Greatness] Map ----- +----------------------------------------------------+ | ????????????????????????????????????????????????? | | ????????????????????????????????????????????????? | | ????????????????????????????????????????????????? | | ????????????????????????????????????????????????? | | ????????????????????????????????????????????????? | | ????????????????????????????????????????????????? | | ????????????????????????????????????????????????? | | ????????????????????????????????????????????????? | | ????????????????????????????????????????????????? | | ????????????????????????????????????????????????? | | ???????????????????? ?????????????????????????? | | ???????????????????? ????????????????????????? | | ???????????????????? ????????????????????????? | | ???????????????????? ##??##???????????????????? | | ???????????????????? ??? #???????????????????? | | ????????????????????# #??? #???????????????????? | | ????????????????????# #### ########????????????? | | ???????????????????## ?????????????? | | ?????????????????### ??????????????? | | ????????????????## #???????????????? | | ????????????????# #???????????????? | | ????????????????# """ #???????????????? | | ????????????????# """ ##??????????????? | | ????????????????# """ ##?????????????? | | ??????????####### % #?????????????? | | ??????????# @g #?????????? | | ??????????# #### gr ## #????????? | | ??????????# #??## # ##?????????????????? | | ??????????# #???## ## #??????????????????? | | ??#???????# #????## #?? #??????????????????? | | ?## ??????# ####??# ##???#??????????????????? | | ## ?????# # ##?## ##???????????????????????? | | # ##??# ##?####????????????????????????? | | # ### #?????????????????????????????? | | ^^ #?????????????????????????????? | | ##^ ##?????????????????????????????? | | ????# ##??????????????????????????????? | | ????# ^ #???????????????????????????????? | | ^# #???????????????????????????????? | | #???????????????????????????????? | | ####### ##???????????????????????????????? | | #???????# ##????????????????????????????????? | | ????????## #?????????????????????????????????? | | ?????????## ##?????????????????????????????????? | | ??????????####??????????????????????????????????? | | ????????????????????????????????????????????????? | | ????????????????????????????????????????????????? | | ????????????????????????????????????????????????? | | ????????????????????????????????????????????????? | | | +----------------------------------------------------+ Best States ------------- Heat Dissipation 25 Energy Generation 10 Energy Capacity 250 Matter Stores 300 Matter Capacity 300 Sight Range 16 Terrain Scan Density 10 Evasion (%) 40 Recoil Reduction 2 Salvage Targeting 1 Item Schematics ----------------- None Robot Schematics ------------------ None Fabricated ------------ Nothing Repaired ---------- Nothing Alien Tech Used ----------------- None Achievements -------------- First Step to Greatness Fist Fight Let's See Who's Tougher Uninvited Guest Challenges ------------ None Game ------ Seed LauncherWeightInitializer Manual? 0 Play Time 00:15:52 Cumulative 0.2 hours Start 2025.06.27 @ 22:43:45 End 2025.06.28 @ 09:24:41 Sessions 2 Manual Loads 0 Difficulty Rogue Special Mode None Game No. 1 Rogue 1 Adventurer 0 Explorer 0 Win Type - Total 0 Types 0/0/0/0/0/0/0/0/0/0 Lore% 0 Gallery% 1 Achievement% 2 Wizard Run 0 Options --------- Layout 1 ASCII 0 Keyboard 0 Movement Numpad Keybinds 0 Fullscreen 2 Font 32/Terminus Map View 50x35 Zoom Use 2% Tactical HUD 0 Map Filters NONE Filters NONE Steam 1 RUN: bff28945-f006-41f1-ab90-6a93ec84fcab